bitfinex/quotes_ETHUSD_20251018
["timestamp","ask_amount","ask_price","bid_price","bid_amount"]
[1760749419593,2.692098,3856.4,3855.4,0.4376]
[1760749419794,0.34262221,3856.4,3855.6,2.59358253]
[1760749420132,2.69209969,3856.4,3855.6,2.59358253]
[1760749420516,0.40682207,3856.5,3855.2,0.6599]
[1760749420716,4.42021991,3856.3,3855.2,2.59389438]
[1760749421031,4.42021991,3856.3,3854.5,3.15891583]
[1760749421032,2.6922356,3856.2,3855.3,2.59376706]
[1760749421191,4.03256988,3856.2,3855.4,2.59375793]
[1760749421531,2.13484734,3856.1,3855.4,2.59375793]
[1760749422326,0.40684734,3856.1,3855.6,2.59362856]
[1760749422531,0.40684734,3856.1,3855.4,2.59376273]
[1760749422532,0.04521406,3856.0,3855.5,2.59368195]
[1760749422713,0.04521406,3856.0,3855.4,2.59376438]
[1760749423537,0.04521406,3856.0,3855.3,2.59382235]
[1760749423723,1.728,3855.8,3855.1,0.2223]
[1760749424027,1.728,3855.8,3855.3,2.59381648]
[1760749424233,0.40687691,3855.7,3855.3,2.59381648]
[1760749424605,0.40687691,3855.7,3855.0,0.2223]
[1760749424795,0.1002,3855.6,3855.1,2.59390931]
[1760749425195,0.04521703,3855.5,3855.1,2.59390931]
[1760749425423,0.04521703,3855.5,3855.2,2.5938859]
[1760749425938,0.04521703,3855.5,3855.3,3.0314192]
[1760749426160,0.04521703,3855.5,3855.1,0.2223]
[1760749426528,0.14421703,3855.5,3855.0,2.59402964]
[1760749427153,0.14421703,3855.5,3855.1,2.59395617]
[1760749427517,0.14421703,3855.5,3855.2,2.59389717]
[1760749427718,0.04521703,3855.5,3855.2,2.59383203]
[1760749428249,0.04521703,3855.5,3855.3,2.59382708]
[1760749428648,0.04521703,3855.5,3855.2,2.59388756]
[1760749428963,1.77321703,3855.5,3854.9,2.59408344]
[1760749429859,0.04521703,3855.5,3854.9,2.594079]
[1760749430218,0.04521703,3855.5,3854.9,2.595079]
[1760749430423,0.04521703,3855.5,3855.0,2.59403275]
[1760749430683,0.04521703,3855.5,3855.0,2.59403372]
[1760749431262,0.04521703,3855.5,3855.2,2.59389897]
[1760749431628,0.04521703,3855.5,3855.1,2.59394347]
[1760749432355,0.04521703,3855.5,3855.2,2.59388094]
[1760749432528,0.04521703,3855.5,3855.4,2.59376458]
[1760749432721,0.04521703,3855.5,3855.3,3.03141352]
[1760749433026,0.04521703,3855.5,3855.4,0.4376]
[1760749433423,0.04521703,3855.5,3855.4,3.03136458]
[1760749434722,0.04521703,3855.5,3855.2,2.59387519]
[1760749434953,0.04521703,3855.5,3855.3,2.59382757]
[1760749435555,0.04521703,3855.5,3855.1,2.59396643]
[1760749435760,0.04521703,3855.5,3855.1,2.59394825]
[1760749436437,0.04521703,3855.5,3855.0,3.03161819]
[1760749436638,0.04521703,3855.5,3855.2,2.59388675]
[1760749436945,0.04521703,3855.5,3855.2,2.59389704]
[1760749437354,0.04521703,3855.5,3855.4,2.59376458]
[1760749437743,0.04521703,3855.5,3855.4,3.03136458]
[1760749438468,0.04521703,3855.5,3855.4,0.4376]
[1760749438631,0.04521703,3855.5,3855.3,2.81611671]
[1760749438952,0.04521703,3855.5,3854.9,0.001]
[1760749439547,0.04521703,3855.5,3855.2,2.59384397]
[1760749439770,0.04521703,3855.5,3855.0,3.05442791]
[1760749439962,0.04521703,3855.5,3855.1,2.593962]
[1760749440263,0.04521703,3855.5,3855.2,2.59389013]
[1760749440468,0.04521703,3855.5,3855.0,0.4604]
[1760749440669,1.728,3855.4,3855.2,2.59385741]
[1760749441074,1.728,3855.4,3854.9,0.001]
[1760749441295,0.1002,3855.3,3854.9,0.001]
[1760749441448,0.1002,3855.3,3854.9,2.59509739]
[1760749441753,0.1002,3855.2,3854.9,0.001]
[1760749441959,1.47400496,3855.3,3854.9,0.001]
[1760749442571,1.728,3855.4,3855.0,2.59398619]
[1760749442748,1.728,3855.4,3855.0,3.05438619]
[1760749442949,1.728,3855.4,3854.9,0.001]
[1760749443161,4.42198226,3855.4,3854.9,0.001]
[1760749443481,4.32178226,3855.4,3854.9,0.001]
[1760749443652,0.1002,3855.3,3854.9,0.001]
[1760749444053,0.1002,3855.3,3854.9,2.5950931]
[1760749444352,1.728,3855.4,3854.9,2.5950931]
[1760749445351,1.728,3855.4,3854.9,0.4751]
[1760749445562,1.728,3855.4,3855.0,2.59398389]
[1760749445744,1.728,3855.4,3855.0,3.06811816]
[1760749445945,0.40690415,3855.3,3855.0,3.06811816]
[1760749446449,1.728,3855.1,3854.9,2.59505009]
[1760749446862,1.728,3855.1,3854.9,0.001]
[1760749447063,8.118,3855.0,3854.9,0.001]
[1760749447294,10.81223372,3855.0,3854.9,0.001]
[1760749447461,8.2182,3855.0,3854.9,0.001]
[1760749447791,10.81223372,3855.0,3854.9,0.001]
[1760749450298,8.2182,3855.0,3854.9,0.001]
[1760749450800,10.81223372,3855.0,3854.9,0.001]
[1760749451200,12.58183755,3855.0,3854.9,0.001]
[1760749452983,12.62706278,3855.0,3854.9,0.001]
[1760749454904,10.03302906,3855.0,3854.9,0.001]
[1760749455105,12.62706278,3855.0,3854.9,0.001]
[1760749456612,13.03402182,3855.0,3854.9,0.001]
[1760749457015,12.93382182,3855.0,3854.9,0.001]
[1760749461930,8.57018427,3855.0,3854.9,0.001]
[1760749464854,8.57018427,3855.0,3854.9,0.4751]
[1760749465143,8.16322523,3855.0,3854.9,0.4751]
[1760749465716,8.16322523,3855.0,3854.9,3.06920101]
[1760749466325,8.118,3855.0,3854.9,3.06920101]
[1760749466550,8.118,3855.0,3854.9,3.63554272]
[1760749467048,6.39,3855.0,3854.9,3.63554272]
[1760749467248,0.002,3855.5,3854.9,3.63554272]
[1760749467549,0.002,3855.5,3855.4,2.81696458]
[1760749467923,0.002,3855.5,3855.4,3.29106458]
[1760749468118,0.002,3855.5,3855.4,3.87956049]
[1760749469028,0.04721332,3855.5,3855.4,3.87956049]
[1760749470234,0.04721332,3855.5,3855.4,3.90549813]
[1760749470740,0.04721332,3855.5,3855.4,4.00916049]
[1760749470927,0.04721332,3855.5,3855.4,1.41539591]
[1760749471147,0.04721332,3855.5,3854.9,2.59508669]
[1760749471349,0.04721332,3855.5,3855.1,2.59396643]
[1760749471552,0.04721332,3855.5,3854.9,0.001]
[1760749472277,0.04721332,3855.5,3855.2,2.59388445]
[1760749472476,0.04721332,3855.5,3855.2,3.05648445]
[1760749472643,0.04721332,3855.5,3855.3,2.59382248]
[1760749473088,0.04721332,3855.5,3855.4,2.59376458]
[1760749473290,0.04721332,3855.5,3855.3,3.18211784]
[1760749473589,0.04721332,3855.5,3855.4,2.59376458]
[1760749473740,0.04721332,3855.5,3855.4,3.08230222]
[1760749474671,0.04721332,3855.5,3855.4,6.93932664]
[1760749474975,0.04721332,3855.5,3855.4,7.98769898]
[1760749476547,0.04721332,3855.5,3855.4,4.23433692]
[1760749477360,0.002,3855.9,3855.8,2.59349551]
[1760749477590,0.002,3855.9,3855.8,6.50239252]
[1760749477745,0.002,3855.9,3855.8,7.89491475]
[1760749478084,0.002,3855.9,3855.8,8.02451475]
[1760749483558,0.04519795,3856.8,3856.3,2.59315924]
[1760749483859,0.04519795,3856.8,3856.2,2.59322649]
[1760749483860,0.04519795,3856.8,3856.7,6.70845235]
[1760749484058,0.04519795,3856.8,3856.7,6.83805235]
[1760749484271,0.04519795,3856.8,3856.7,8.50306404]
[1760749485485,0.4023,3857.7,3857.5,2.59229431]
[1760749485783,0.4023,3857.7,3857.6,2.59228535]
[1760749488501,0.4023,3857.7,3856.8,2.59282306]
[1760749488717,2.59246587,3857.4,3855.9,6.47638571]
[1760749488869,0.002,3856.7,3856.6,2.59295752]
[1760749489194,0.002,3856.7,3856.6,3.05555752]
[1760749493116,0.002,3856.7,3856.6,2.59295752]
[1760749494207,0.002,3856.7,3856.6,3.05555752]
[1760749494382,0.002,3856.7,3856.6,3.63081528]
[1760749495401,0.002,3856.7,3856.6,3.76041528]
[1760749497273,0.002,3856.7,3856.6,8.12437726]
[1760749499506,0.002,3856.7,3856.6,3.29781528]
[1760749499809,0.002,3856.7,3856.6,3.59781528]
[1760749500483,0.002,3856.7,3856.6,3.29781528]
[1760749501537,0.1063,3856.7,3856.6,0.1296]
[1760749501710,0.1063,3856.7,3856.1,0.1296]
[1760749502032,0.1043,3856.6,3855.9,0.1296]
[1760749502236,1.8323,3856.6,3855.9,0.1296]
[1760749502408,0.30791,3856.6,3855.8,2.5934946]
[1760749502732,0.1043,3856.5,3855.9,0.02593428]
[1760749503032,0.002,3856.7,3856.6,2.59295752]
[1760749503214,0.002,3856.7,3856.3,0.1296]
[1760749503394,0.0471991,3856.7,3856.6,2.59295752]
[1760749503595,0.0471991,3856.7,3855.5,2.59369731]
[1760749503820,0.0471991,3856.7,3856.2,2.59321864]
[1760749504031,0.1043,3856.6,3856.3,2.59315753]
[1760749504328,0.1043,3856.5,3856.3,2.59315753]
[1760749504533,0.1043,3856.4,3856.2,2.59320618]
[1760749504733,0.1043,3856.3,3856.2,2.59322649]
[1760749505242,0.1043,3856.3,3856.0,2.59329945]
[1760749505531,0.1043,3856.2,3856.1,2.59326829]
[1760749506148,0.1043,3856.2,3855.6,2.59360251]
[1760749506310,0.2227,3855.7,3855.4,0.001]
[1760749506520,1.827,3856.1,3855.7,2.59351117]
[1760749506521,0.099,3856.1,3855.7,2.59351117]
[1760749506723,0.1002,3856.0,3855.4,0.001]
[1760749506927,0.2202,3855.8,3855.7,2.59356277]
[1760749507235,0.3216,3855.8,3855.7,2.59356277]
[1760749507623,0.04520992,3856.1,3855.4,0.001]
[1760749507809,0.14420992,3856.1,3855.9,2.59342611]
[1760749508012,0.099,3856.0,3855.9,2.59342611]
[1760749508405,0.04520992,3856.1,3856.0,2.59336099]
[1760749508761,0.2018,3856.8,3856.6,2.59295752]
[1760749509864,0.2018,3856.8,3856.2,2.59317943]
[1760749510040,0.099,3856.6,3855.9,0.38894261]
[1760749510577,0.099,3856.5,3855.7,2.59354311]
[1760749510729,0.099,3856.4,3856.0,2.59331448]
[1760749511059,0.099,3856.4,3856.0,2.593314]
[1760749511263,0.099,3856.3,3856.0,2.593314]
[1760749511426,0.40679704,3856.5,3856.0,2.593314]
[1760749511641,0.099,3856.2,3856.0,2.593314]
[1760749511828,0.40679704,3856.5,3855.7,2.59354252]
[1760749512156,0.099,3856.4,3855.7,2.59354944]
[1760749512343,1.87220849,3856.4,3855.4,0.001]
[1760749512658,0.2214,3855.8,3855.4,0.001]
[1760749513157,0.1002,3855.7,3855.4,0.001]
[1760749513525,0.2214,3855.8,3855.4,0.001]
[1760749513722,0.04521379,3855.7,3855.4,0.001]
[1760749514126,0.14541379,3855.7,3855.4,2.59471903]
[1760749514360,0.04521379,3855.7,3855.4,0.001]
[1760749514672,0.04521379,3855.7,3855.6,2.59363004]
[1760749515155,0.04521379,3855.7,3855.6,2.85309304]
[1760749517071,0.04521379,3855.7,3855.4,0.001]
[1760749517374,0.1026,3855.6,3855.4,0.001]
[1760749517558,1.728,3855.5,3855.4,0.001]
[1760749517879,0.04521379,3855.7,3855.4,0.001]
[1760749518058,0.1026,3855.5,3855.4,0.001]
[1760749518366,1.8306,3855.5,3855.4,0.001]
[1760749518526,0.1026,3855.5,3855.4,0.001]
[1760749519779,0.62586895,3855.8,3855.4,0.001]
[1760749520136,0.62586895,3855.8,3855.4,2.59474632]
[1760749520442,0.40686895,3855.8,3855.6,2.59357312]
[1760749520666,0.1038,3856.3,3855.7,2.59356277]
[1760749520851,2.59315013,3856.4,3855.4,0.5893734]
[1760749520852,0.40683322,3856.4,3855.4,0.5893734]
[1760749521047,0.40683322,3856.4,3856.0,2.59335004]
[1760749521249,0.40683322,3856.4,3856.1,2.59327783]
[1760749521442,0.40683322,3856.4,3856.2,2.59321309]
[1760749521872,0.04721413,3856.7,3855.7,4.83866198]
[1760749522040,0.04721413,3856.7,3856.4,2.59309021]
[1760749522240,0.002,3856.7,3856.1,0.2204]
[1760749522445,0.04720515,3856.7,3856.4,2.59307823]
[1760749522929,0.04720515,3856.7,3856.5,2.59301765]
[1760749523559,0.04720515,3856.7,3856.1,0.2204]
[1760749523863,0.04720515,3856.7,3856.6,2.59295752]
[1760749524068,0.04720515,3856.7,3856.2,0.4747]
[1760749524270,0.04720515,3856.7,3856.1,2.7228927]
[1760749524436,2.74670707,3856.7,3856.0,2.5933124]
[1760749524631,0.1066,3856.6,3856.0,2.59335137]
[1760749526369,2.69957151,3856.6,3855.6,0.6043]
[1760749526538,0.1066,3856.5,3855.6,0.1296]
[1760749526743,0.1066,3856.5,3855.9,2.59336917]
[1760749526943,0.1066,3856.5,3855.7,2.59356277]
[1760749526944,0.1066,3856.5,3856.0,2.59333204]
[1760749527250,0.04520522,3856.4,3855.6,2.72321788]
[1760749527463,0.04520522,3856.4,3855.7,2.913452]
[1760749527654,0.04520522,3856.4,3855.9,2.59341227]
[1760749527973,1.728,3856.3,3855.6,2.72320178]
[1760749528269,1.728,3856.3,3855.4,0.001]
[1760749528270,1.728,3856.1,3855.4,0.001]
[1760749528469,4.32144243,3855.9,3855.4,0.001]
[1760749528640,2.59344243,3855.9,3855.4,0.001]
[1760749528840,0.14421023,3855.8,3855.4,0.001]
[1760749529048,0.099,3855.8,3855.4,0.001]
[1760749529271,0.2256,3855.9,3855.5,2.59364781]
[1760749529449,6.39,3856.0,3855.5,2.59364351]
[1760749529657,6.39,3856.0,3855.6,0.4374]
[1760749529999,1.728,3855.9,3855.4,2.59471168]
[1760749530354,1.728,3855.9,3855.4,3.03211168]
[1760749530982,1.728,3855.9,3855.5,2.59366448]
[1760749531347,1.728,3855.9,3855.6,2.59362832]
[1760749531548,1.728,3855.9,3855.5,3.03109118]
[1760749531760,1.728,3855.9,3855.5,2.59369118]
[1760749532276,1.77321012,3855.9,3855.5,2.59369118]
[1760749532579,1.77321012,3855.9,3855.4,2.59475686]
[1760749532871,1.77321012,3855.9,3855.5,0.4374]
[1760749533078,1.77321012,3855.9,3855.4,0.001]
[1760749533278,1.77321012,3855.9,3855.4,2.59473399]
[1760749533842,1.77321012,3855.9,3855.4,0.001]
[1760749533843,0.1015,3855.8,3855.4,0.001]
[1760749534060,0.1015,3855.8,3855.4,2.59476393]
[1760749534864,1.77321012,3855.9,3855.4,0.001]
[1760749535082,1.77321012,3855.9,3855.5,2.59367213]
[1760749535291,1.77321012,3855.9,3855.6,2.59362416]
[1760749535587,1.77321012,3855.9,3855.7,2.59355933]
[1760749535758,1.77321012,3855.9,3855.8,3.03089551]
[1760749536074,1.77321012,3855.9,3855.7,0.51883189]
[1760749536075,0.04521012,3855.9,3855.7,0.51883189]
[1760749536275,0.04521012,3855.9,3855.8,2.59349551]
[1760749536478,0.04521012,3855.9,3855.8,3.03089551]
[1760749536680,0.04521012,3855.9,3855.7,0.51883189]
[1760749536879,2.51943113,3855.9,3855.5,2.59369172]
[1760749537194,2.09651012,3855.9,3855.4,2.59475504]
[1760749537482,4.32161456,3855.7,3855.4,0.001]
[1760749537981,1.728,3855.5,3855.4,0.001]
[1760749538555,0.1039,3855.5,3855.4,0.001]
[1760749539982,1.8319,3855.5,3855.4,0.001]
[1760749540958,2.69759731,3855.5,3855.4,0.001]
[1760749541159,12.15651516,3855.5,3855.4,0.001]
[1760749541481,12.20172698,3855.5,3855.4,0.001]
[1760749541676,12.15651516,3855.5,3855.4,0.001]
[1760749541877,12.5634293,3855.5,3855.4,0.001]
[1760749542091,12.46843217,3855.5,3855.4,0.001]
[1760749543775,12.15651516,3855.5,3855.4,0.001]
[1760749544260,12.20173291,3855.5,3855.4,0.001]
[1760749544995,10.75691506,3855.5,3855.4,0.001]
[1760749545169,11.16384922,3855.5,3855.4,0.001]
[1760749545370,8.57015191,3855.5,3855.4,0.001]
[1760749546317,11.16384922,3855.5,3855.4,0.001]
[1760749546491,8.57015191,3855.5,3855.4,0.001]
[1760749548398,8.57015191,3855.5,3855.4,0.4384]
[1760749548988,8.57015191,3855.5,3855.4,0.001]
[1760749549571,8.57015191,3855.5,3855.4,0.4384]
[1760749549894,8.57015191,3855.5,3855.4,0.001]
[1760749551605,8.66915191,3855.5,3855.4,0.001]
[1760749551972,11.26284922,3855.5,3855.4,0.001]
[1760749552172,10.85591506,3855.5,3855.4,0.001]
[1760749552572,12.25461548,3855.5,3855.4,0.001]
[1760749552872,12.20939773,3855.5,3855.4,0.001]
[1760749553177,5.81939773,3855.5,3855.4,0.001]
[1760749554102,3.22570042,3855.5,3855.4,0.001]
[1760749554298,4.42069731,3855.5,3855.4,0.001]
[1760749554888,4.73261432,3855.5,3855.4,0.001]
[1760749555296,4.77783413,3855.5,3855.4,0.001]
[1760749559804,4.73261432,3855.5,3855.4,0.001]
[1760749561434,8.61821971,3855.5,3855.4,0.001]
[1760749562521,16.62643804,3855.5,3855.4,0.001]
[1760749563637,16.62643804,3855.5,3855.0,0.001]
[1760749563638,2.59396643,3855.1,3855.0,0.001]
[1760749563847,15.19065028,3855.1,3855.0,0.001]
[1760749564000,4.32203372,3855.0,3854.9,0.001]
[1760749564201,6.05387389,3855.0,3854.9,0.001]
[1760749564404,6.15287389,3855.0,3854.9,0.001]
[1760749565413,4.32230291,3854.6,3854.5,1e-08]
[1760749565617,11.97528717,3854.6,3854.5,1e-08]
[1760749565831,12.07558717,3854.6,3854.5,1e-08]
[1760749566030,12.12082622,3854.6,3854.5,1e-08]
[1760749566854,12.52793303,3854.6,3854.5,1e-08]
[1760749568346,12.21601602,3854.6,3854.5,1e-08]
[1760749570528,4.32257215,3854.2,3854.1,0.001]
[1760749570728,15.52591262,3854.2,3854.1,0.001]
[1760749570929,15.62621262,3854.2,3854.1,0.001]
[1760749571231,16.07860073,3854.2,3854.1,0.001]
[1760749571421,16.39051774,3854.2,3854.1,0.001]
[1760749571619,17.52927945,3854.2,3854.1,0.001]
[1760749573822,6.32593898,3854.2,3854.1,0.001]
[1760749574029,5.91372197,3854.2,3854.1,0.001]
[1760749574935,5.50658185,3854.2,3854.1,0.001]
[1760749575132,3.77858185,3854.2,3854.1,0.6809]
[1760749575331,4.18570396,3854.2,3854.1,0.6809]
[1760749576049,4.18570396,3854.2,3854.1,0.001]
[1760749576640,1.728,3853.0,3852.9,0.2204]
[1760749577235,8.1622474,3853.0,3852.9,0.6744]
[1760749577854,8.1622474,3853.0,3852.9,3.26984758]
[1760749578059,0.0452474,3853.0,3852.9,3.26984758]
[1760749578262,2.59469774,3854.1,3853.4,2.59509924]
[1760749578470,0.40711242,3853.7,3853.4,2.59509924]
[1760749578765,0.40711242,3853.7,3853.6,0.2259]
[1760749578965,0.40711242,3853.7,3853.6,2.82087612]
[1760749579161,0.40711242,3853.7,3853.6,3.27487612]
[1760749580267,0.40711242,3853.7,3853.6,0.6799]
[1760749580564,0.40711242,3853.7,3853.6,3.27487612]
[1760749581253,0.40711242,3853.7,3853.6,0.6799]
[1760749581644,0.40711242,3853.7,3853.6,3.27587612]
[1760749581850,0.40711242,3853.7,3853.6,0.6809]
[1760749582143,0.0452386,3853.7,3853.6,3.27585308]
[1760749582554,0.0452386,3853.7,3853.6,0.6809]
[1760749583276,0.0452386,3853.7,3853.6,0.2269]
[1760749583567,4.36814738,3853.7,3853.6,0.001]
[1760749583741,5.28176931,3853.7,3853.6,0.001]
[1760749584138,5.59368632,3853.7,3853.6,0.001]
[1760749585274,6.00082434,3853.7,3853.6,0.001]
[1760749585637,6.32612434,3853.7,3853.6,0.001]
[1760749587670,6.60728579,3853.7,3853.6,0.001]
[1760749588058,13.79851862,3853.3,3853.2,0.001]
[1760749588379,2.59544758,3852.9,3852.8,0.001]
[1760749588673,4.83556459,3852.9,3852.8,0.001]
[1760749588872,5.15966459,3852.9,3852.8,0.001]
[1760749589376,5.44082604,3852.9,3852.8,0.001]
[1760749589567,5.72294375,3852.9,3852.8,0.001]
[1760749589965,6.13022381,3852.9,3852.8,0.001]
[1760749590469,4.32358231,3852.7,3851.7,0.4414]
[1760749590781,4.32391921,3852.2,3851.7,0.4414]
[1760749591345,11.11920693,3852.2,3851.7,0.4414]
[1760749591546,12.03282886,3852.2,3851.7,0.4414]
[1760749591865,12.03282886,3852.2,3851.7,0.001]
[1760749592268,11.62554114,3852.2,3851.7,0.001]
[1760749592983,11.62554114,3852.2,3851.9,0.4404]
[1760749593154,10.71191921,3852.2,3852.1,0.6583]
[1760749593356,8.116,3852.2,3852.1,0.6583]
[1760749594147,6.388,3852.2,3852.1,0.6583]
[1760749594354,6.43325888,3852.2,3852.1,0.6583]
[1760749594664,8.16125888,3852.2,3852.1,0.6583]
[1760749595071,8.56849028,3852.2,3852.1,0.6583]
[1760749596078,11.16440949,3852.2,3852.1,0.6583]
[1760749596789,8.56849028,3852.2,3852.1,0.6583]
[1760749599291,8.5232314,3852.2,3852.1,0.6583]
[1760749599458,8.5232314,3852.2,3852.1,0.2179]
[1760749599785,8.5232314,3852.2,3852.1,0.001]
[1760749599786,11.11915061,3852.2,3852.1,0.001]
[1760749600302,8.5232314,3852.2,3852.1,0.001]
[1760749600456,8.5232314,3852.2,3852.1,0.4414]
[1760749601785,8.5232314,3852.2,3852.1,0.1914]
[1760749601992,1.728,3852.1,3851.7,0.001]
[1760749602186,1.728,3851.9,3851.7,0.001]
[1760749602863,1.728,3851.9,3851.7,2.59723976]
[1760749603059,1.728,3851.9,3851.7,0.001]
[1760749603667,1.728,3851.9,3851.7,2.5972456]
[1760749603974,1.728,3851.9,3851.8,0.4404]
[1760749606267,8.116,3851.9,3851.8,0.4404]
[1760749609610,8.116,3851.9,3851.8,3.03658879]
[1760749610072,8.116,3851.9,3851.8,0.4404]
[1760749610472,8.116,3851.9,3851.8,3.03658879]
[1760749615295,8.116,3851.9,3851.8,3.59997647]
[1760749616687,8.116,3851.9,3851.8,0.56338768]
[1760749617005,8.116,3851.9,3851.8,2.59618879]
[1760749617305,8.116,3851.9,3851.8,3.03658879]
[1760749617511,8.116,3851.9,3851.8,3.03758879]
[1760749618508,8.116,3851.9,3851.8,2.59718879]
[1760749619708,8.116,3851.9,3851.8,3.03398879]
[1760749620684,8.116,3851.9,3851.8,3.33424405]
[1760749621881,8.116,3851.9,3851.8,0.001]
[1760749622081,11.08352139,3851.9,3851.8,0.001]
[1760749625023,8.116,3851.9,3851.8,0.001]
[1760749625695,11.08202139,3851.9,3851.8,0.001]
[1760749625896,8.4859,3851.9,3851.8,0.001]
[1760749626112,12.71227301,3851.9,3851.8,0.001]
[1760749626312,13.02419002,3851.9,3851.8,0.001]
[1760749626697,13.4314854,3851.9,3851.8,0.001]
[1760749628406,13.11956839,3851.9,3851.8,0.001]
[1760749629713,13.07430628,3851.9,3851.8,0.001]
[1760749630832,13.38622329,3851.9,3851.8,0.001]
[1760749630988,12.97892791,3851.9,3851.8,0.001]
[1760749632595,13.02419675,3851.9,3851.8,0.001]
[1760749634309,13.43153721,3851.9,3851.8,0.001]
[1760749635846,10.71118879,3851.8,3851.7,0.001]
[1760749636011,16.43127995,3851.8,3851.7,0.001]
[1760749636211,16.79957995,3851.8,3851.7,0.001]
[1760749638722,16.43127995,3851.8,3851.7,0.001]
[1760749638928,16.79957995,3851.8,3851.7,0.001]
[1760749639144,12.05495418,3851.8,3851.7,0.001]
[1760749639349,6.387,3851.8,3851.7,0.4561]
[1760749639639,10.71118879,3851.8,3851.7,0.4561]
[1760749640228,15.08751456,3851.8,3851.7,0.001]
[1760749640434,16.82457347,3851.8,3851.7,0.001]
[1760749642137,2.59673568,3851.0,3850.7,0.2091]
[1760749642545,2.59673568,3851.0,3850.1,2.59832952]
[1760749642739,4.32425619,3851.7,3850.1,0.001]
[1760749642740,1.728,3851.7,3850.1,0.001]
[1760749642945,1.728,3851.3,3850.1,0.001]
[1760749643146,1.728,3851.1,3850.6,2.59799445]
[1760749643311,2.59653933,3851.3,3850.6,2.59799445]
[1760749643736,0.04526942,3851.5,3850.7,2.5969193]
[1760749643935,1.728,3851.1,3850.6,2.59797744]
[1760749644146,1.728,3851.1,3850.7,0.4551]
[1760749644346,1.728,3851.5,3850.7,3.05199608]
[1760749644519,0.04526836,3851.1,3850.8,0.4551]
[1760749644712,2.64193751,3851.1,3850.6,0.001]
[1760749644919,1.728,3851.0,3850.7,0.4551]
[1760749645128,0.04526836,3851.1,3850.8,0.4551]
[1760749645835,0.04526836,3851.1,3850.9,0.4551]
[1760749646022,0.04526836,3851.1,3851.0,0.4551]
[1760749646654,0.04526836,3851.1,3851.0,3.35703083]
[1760749650925,1.728,3851.7,3851.3,2.59649226]
[1760749651126,1.728,3851.7,3851.4,3.02845284]
[1760749651962,1.728,3851.7,3851.4,2.59645284]
[1760749652141,1.728,3851.7,3851.5,0.432]
[1760749652957,1.728,3851.7,3851.4,2.59644827]
[1760749653136,1.728,3851.7,3851.5,3.02837244]
[1760749653336,1.728,3851.7,3851.6,0.432]
[1760749653929,2.2001,3851.7,3850.6,0.433]
[1760749654156,2.59645172,3851.5,3850.8,2.59681206]
[1760749654546,2.59646389,3851.4,3850.8,2.59681206]
[1760749655280,0.4721,3851.5,3850.9,2.59679133]
[1760749655568,0.04526579,3851.3,3851.0,2.59671983]
[1760749655928,0.04526579,3851.3,3850.7,2.59693042]
[1760749655929,0.04526579,3851.3,3850.9,2.59679001]
[1760749656570,0.04526579,3851.3,3850.9,2.59678419]
[1760749657335,0.04526579,3851.3,3850.6,0.433]
[1760749657537,2.59670196,3851.1,3850.6,0.001]
[1760749658045,3.06880196,3851.1,3850.6,0.001]
[1760749658993,0.4721,3851.0,3850.6,0.001]
[1760749659756,2.59670196,3851.1,3850.6,0.001]
[1760749659963,0.4721,3851.0,3850.6,0.001]
[1760749660779,2.59672987,3851.0,3850.6,0.001]
[1760749660995,3.3045098,3850.9,3850.6,0.001]
[1760749661288,3.30451111,3850.9,3850.6,0.001]
[1760749661458,2.83241111,3850.9,3850.6,0.001]
[1760749661661,0.4721,3850.8,3850.6,0.001]
[1760749663767,3.06898021,3850.8,3850.6,0.001]
[1760749664168,0.4721,3850.8,3850.6,0.001]
[1760749664489,0.2356,3850.9,3850.6,0.001]
[1760749664790,4.79677249,3851.1,3850.6,0.001]
[1760749664989,2.2001,3851.1,3850.6,0.001]
[1760749665191,4.79676373,3851.1,3850.6,0.001]
[1760749666518,1.728,3851.1,3850.6,2.59797166]
[1760749666653,0.31191701,3851.7,3850.6,0.001]
[1760749666654,1.728,3851.6,3850.6,0.001]
[1760749666852,3.06842871,3851.6,3850.8,2.59684003]
[1760749667055,2.13535431,3851.4,3850.9,2.596753]
[1760749667465,0.40735431,3851.4,3850.9,0.432]
[1760749667676,0.40735431,3851.4,3850.9,3.02875233]
[1760749667871,0.40735431,3851.4,3850.9,2.59675233]
[1760749668559,0.40735431,3851.4,3851.0,0.432]
[1760749668754,0.40735431,3851.4,3851.1,3.02859496]
[1760749668974,0.40735431,3851.4,3851.2,2.59657177]
[1760749669169,0.40735431,3851.4,3850.6,0.001]
[1760749669370,2.59665356,3851.2,3850.6,0.001]
[1760749669572,2.59652584,3851.3,3850.6,0.001]
[1760749669884,2.59652584,3851.3,3850.6,2.59799745]
[1760749669885,2.5966004,3851.2,3850.6,2.59799745]
[1760749670088,2.64186918,3851.2,3850.6,2.59799745]
[1760749670315,0.82421832,3851.3,3850.7,2.59692674]
[1760749670498,3.42074654,3851.3,3850.7,2.59692674]
[1760749670817,3.06862822,3851.3,3850.7,2.59692674]
[1760749671181,6.387,3851.2,3850.7,2.59692674]
[1760749671380,6.387,3851.2,3850.6,0.001]
[1760749671623,6.387,3851.2,3850.8,2.59685978]
[1760749671838,0.2356,3850.9,3850.6,0.001]
[1760749672490,0.4721,3850.8,3850.6,0.001]
[1760749674044,0.2356,3850.9,3850.6,0.001]
[1760749674193,6.387,3851.2,3850.8,2.59684653]
[1760749674786,6.387,3851.2,3850.8,2.59686298]
[1760749675116,6.387,3851.2,3850.9,2.59678636]
[1760749675317,6.387,3851.2,3850.8,2.59684006]
[1760749676544,6.43226727,3851.2,3850.8,0.432]
[1760749677132,6.43226727,3851.2,3850.6,0.001]
[1760749677335,6.43226727,3851.2,3850.9,0.432]
[1760749677503,6.43226727,3851.2,3851.0,2.59667459]
[1760749677837,6.43226727,3851.2,3851.1,2.59666069]
[1760749679327,6.43226727,3851.2,3851.0,2.5967103]
[1760749679919,6.43226727,3851.2,3850.8,2.59686298]
[1760749680118,6.43226727,3851.2,3850.7,2.59692389]